[Event "Titled Tuesday Blitz May 2 Early 2023"]
[White "Zaitsev, Alexander"]
[Black "Wessendorf, Thomas, Dr."]
[WhiteFideId "4164490"]
[BlackFideId "4604270"]
[WhiteElo "2373"]
[BlackElo "2280"]
[Result "1-0"]
[Round "09"]
[TimeControl "180+2"]
[Date "2023.05.02"]
[WhiteClock "0:00:02"]
[BlackClock "0:00:02"]

1. e4 {[%clk 0:02:57]}  c5 {[%clk 0:02:59]} 2. Nf3 {[%clk 0:02:57]}  d6 {[%clk 0:02:59]} 3. d4 {[%clk 0:02:57]}  cxd4 {[%clk 0:03:00]} 4. Qxd4 {[%clk 0:02:58]}  Nf6 {[%clk 0:02:57]} 5. Nc3 {[%clk 0:02:52]}  Nc6 {[%clk 0:02:52]} 6. Bb5 {[%clk 0:02:52]}  e5 {[%clk 0:02:46]} 7. Qd3 {[%clk 0:02:49]}  h6 {[%clk 0:02:35]} 8. O-O {[%clk 0:02:39]}  Be6 {[%clk 0:02:34]} 9. Nd2 {[%clk 0:02:09]}  Rc8 {[%clk 0:02:31]} 10. Nc4 {[%clk 0:02:04]}  a6 {[%clk 0:02:20]} 11. Bxc6+ {[%clk 0:02:03]}  bxc6 {[%clk 0:02:16]} 12. Rd1 {[%clk 0:01:56]}  Bxc4 {[%clk 0:02:11]} 13. Qxc4 {[%clk 0:01:56]}  Qb6 {[%clk 0:02:03]} 14. Be3 {[%clk 0:01:55]}  Qb7 {[%clk 0:01:57]} 15. Qb3 {[%clk 0:01:15]}  Rb8 {[%clk 0:01:46]} 16. f3 {[%clk 0:01:02]}  Be7 {[%clk 0:01:45]} 17. Qxb7 {[%clk 0:00:51]}  Rxb7 {[%clk 0:01:45]} 18. Na4 {[%clk 0:00:51]}  O-O {[%clk 0:01:25]} 19. c4 {[%clk 0:00:51]}  Rfb8 {[%clk 0:01:04]} 20. b3 {[%clk 0:00:51]}  Ne8 {[%clk 0:00:58]} 21. c5 {[%clk 0:00:48]}  dxc5 {[%clk 0:00:54]} 22. Nxc5 {[%clk 0:00:41]}  Bxc5 {[%clk 0:00:53]} 23. Bxc5 {[%clk 0:00:42]}  f6 {[%clk 0:00:48]} 24. Rac1 {[%clk 0:00:40]}  Rc8 {[%clk 0:00:44]} 25. Rc4 {[%clk 0:00:39]}  Kf7 {[%clk 0:00:43]} 26. Ra4 {[%clk 0:00:39]}  Nc7 {[%clk 0:00:41]} 27. Rd7+ {[%clk 0:00:32]}  Kg6 {[%clk 0:00:40]} 28. Bd6 {[%clk 0:00:27]}  h5 {[%clk 0:00:29]} 29. Rc4 {[%clk 0:00:26]}  Nb5 {[%clk 0:00:25]} 30. Rxb7 {[%clk 0:00:18]}  Nxd6 {[%clk 0:00:25]} 31. Rb6 {[%clk 0:00:15]}  Nxc4 {[%clk 0:00:24]} 32. bxc4 {[%clk 0:00:16]}  Rd8 {[%clk 0:00:22]} 33. Rxa6 {[%clk 0:00:13]}  Rd2 {[%clk 0:00:21]} 34. h4 {[%clk 0:00:11]}  Rc2 {[%clk 0:00:17]} 35. Rxc6 {[%clk 0:00:11]}  Rxa2 {[%clk 0:00:17]} 36. Kh2 {[%clk 0:00:12]}  Rc2 {[%clk 0:00:16]} 37. Kh3 {[%clk 0:00:13]}  Kh6 {[%clk 0:00:15]} 38. Rc7 {[%clk 0:00:13]}  g5 {[%clk 0:00:15]} 39. hxg5+ {[%clk 0:00:10]}  Kxg5 {[%clk 0:00:13]} 40. c5 {[%clk 0:00:05]}  Rc1 {[%clk 0:00:05]} 41. Rg7+ {[%clk 0:00:02]}  Kf4 {[%clk 0:00:04]} 42. Rc7 {[%clk 0:00:02]}  Kg5 {[%clk 0:00:04]} 43. Kg3 {[%clk 0:00:02]}  h4+ {[%clk 0:00:03]} 44. Kh2 {[%clk 0:00:02]}  Kf4 {[%clk 0:00:02]} 45. Rg7 {[%clk 0:00:02]} 1-0


[Site "https://www.chess.com"]

[Event "Titled Tuesday Blitz May 2 Early 2023"]
[White "Jimenez Fernandez, Rebeca"]
[Black "Koridze, Lile"]
[WhiteFideId "32070934"]
[BlackFideId "13612514"]
[WhiteElo "2008"]
[BlackElo "2047"]
[Result "1-0"]
[Round "09"]
[TimeControl "180+2"]
[Date "2023.05.02"]
[WhiteClock "0:01:26"]
[BlackClock "0:00:51"]

1. e4 {[%clk 0:03:00]}  c5 {[%clk 0:03:00]} 2. Nc3 {[%clk 0:03:00]}  d6 {[%clk 0:02:53]} 3. g3 {[%clk 0:03:01]}  g6 {[%clk 0:02:53]} 4. Bg2 {[%clk 0:03:01]}  Bg7 {[%clk 0:02:54]} 5. d3 {[%clk 0:03:02]}  Nc6 {[%clk 0:02:46]} 6. Be3 {[%clk 0:03:02]}  e6 {[%clk 0:02:46]} 7. Qd2 {[%clk 0:03:02]}  Nge7 {[%clk 0:02:46]} 8. Bh6 {[%clk 0:03:03]}  O-O {[%clk 0:02:43]} 9. h4 {[%clk 0:03:03]}  Bxh6 {[%clk 0:02:25]} 10. Qxh6 {[%clk 0:03:02]}  Kh8 {[%clk 0:02:25]} 11. h5 {[%clk 0:02:57]}  Ng8 {[%clk 0:02:25]} 12. Qd2 {[%clk 0:02:57]}  Qf6 {[%clk 0:02:15]} 13. hxg6 {[%clk 0:02:53]}  fxg6 {[%clk 0:02:15]} 14. Nf3 {[%clk 0:02:53]}  Nd4 {[%clk 0:01:57]} 15. Ng5 {[%clk 0:02:45]}  h6 {[%clk 0:01:57]} 16. Nh3 {[%clk 0:02:23]}  Nf3+ {[%clk 0:01:49]} 17. Bxf3 {[%clk 0:02:21]}  Qxf3 {[%clk 0:01:50]} 18. Rh2 {[%clk 0:02:15]}  Kg7 {[%clk 0:01:34]} 19. Ne2 {[%clk 0:02:13]}  Nf6 {[%clk 0:01:22]} 20. Nhg1 {[%clk 0:02:02]}  Qg4 {[%clk 0:01:16]} 21. Qxh6+ {[%clk 0:02:01]}  Kf7 {[%clk 0:01:16]} 22. O-O-O {[%clk 0:01:55]}  Nh5 {[%clk 0:01:00]} 23. f3 {[%clk 0:01:49]}  Rh8 {[%clk 0:00:54]} 24. Qxh8 {[%clk 0:01:42]}  Qg5+ {[%clk 0:00:54]} 25. Kb1 {[%clk 0:01:32]}  b6 {[%clk 0:00:51]} 26. Qh7+ {[%clk 0:01:26]} 1-0


[Site "https://www.chess.com"]

[Event "Titled Tuesday Blitz May 2 Early 2023"]
[White "Matveeva, Olga"]
[Black "Amitpal, Singh"]
[WhiteFideId "24107018"]
[BlackFideId "5012899"]
[WhiteElo "2056"]
[BlackElo "2107"]
[Result "1-0"]
[Round "09"]
[TimeControl "180+2"]
[Date "2023.05.02"]
[WhiteClock "0:01:19"]
[BlackClock "0:00:28"]

1. d4 {[%clk 0:03:00]}  Nf6 {[%clk 0:02:55]} 2. c4 {[%clk 0:02:59]}  g6 {[%clk 0:02:56]} 3. g3 {[%clk 0:02:59]}  Bg7 {[%clk 0:02:56]} 4. Bg2 {[%clk 0:02:59]}  O-O {[%clk 0:02:56]} 5. Nc3 {[%clk 0:03:00]}  d6 {[%clk 0:02:57]} 6. Nf3 {[%clk 0:03:00]}  Nc6 {[%clk 0:02:57]} 7. O-O {[%clk 0:03:00]}  e5 {[%clk 0:02:57]} 8. d5 {[%clk 0:02:53]}  Ne7 {[%clk 0:02:55]} 9. e4 {[%clk 0:02:53]}  Nd7 {[%clk 0:02:51]} 10. Ne1 {[%clk 0:02:51]}  f5 {[%clk 0:02:50]} 11. Nd3 {[%clk 0:02:43]}  h6 {[%clk 0:02:35]} 12. f4 {[%clk 0:02:39]}  Kh7 {[%clk 0:01:59]} 13. Qc2 {[%clk 0:02:16]}  fxe4 {[%clk 0:01:46]} 14. Nxe4 {[%clk 0:02:15]}  Nf5 {[%clk 0:01:45]} 15. fxe5 {[%clk 0:02:07]}  Nxe5 {[%clk 0:01:39]} 16. Nxe5 {[%clk 0:02:06]}  Bxe5 {[%clk 0:01:40]} 17. Bf4 {[%clk 0:01:56]}  Nd4 {[%clk 0:01:07]} 18. Qd2 {[%clk 0:01:46]}  Bg4 {[%clk 0:01:03]} 19. Bxh6 {[%clk 0:01:38]}  Nf5 {[%clk 0:00:46]} 20. Ng5+ {[%clk 0:01:33]}  Kg8 {[%clk 0:00:39]} 21. Ne6 {[%clk 0:01:27]}  Qe7 {[%clk 0:00:26]} 22. Bxf8 {[%clk 0:01:26]}  Rxf8 {[%clk 0:00:27]} 23. Nxf8 {[%clk 0:01:26]}  Qxf8 {[%clk 0:00:28]} 24. Qg5 {[%clk 0:01:19]} 1-0


[Site "https://www.chess.com"]

[Event "Titled Tuesday Blitz May 2 Early 2023"]
[White "Manon-og, Ramon Jr."]
[Black "Srdanovic, Jovana"]
[WhiteFideId "5200776"]
[BlackFideId "954810"]
[WhiteElo "1999"]
[BlackElo "2145"]
[Result "1-0"]
[Round "09"]
[TimeControl "180+2"]
[Date "2023.05.02"]
[WhiteClock "0:00:20"]
[BlackClock "0:00:01"]

1. e4 {[%clk 0:02:54]}  c6 {[%clk 0:03:00]} 2. d4 {[%clk 0:02:54]}  d5 {[%clk 0:03:00]} 3. e5 {[%clk 0:02:54]}  Na6 {[%clk 0:03:00]} 4. Bxa6 {[%clk 0:02:53]}  Qa5+ {[%clk 0:02:59]} 5. Nc3 {[%clk 0:02:51]}  Qxa6 {[%clk 0:02:59]} 6. Nge2 {[%clk 0:02:52]}  Bf5 {[%clk 0:02:59]} 7. O-O {[%clk 0:02:53]}  e6 {[%clk 0:02:59]} 8. Be3 {[%clk 0:02:50]}  h6 {[%clk 0:02:41]} 9. Ng3 {[%clk 0:02:50]}  Bh7 {[%clk 0:02:41]} 10. f4 {[%clk 0:02:51]}  Ne7 {[%clk 0:02:41]} 11. a4 {[%clk 0:02:31]}  Nf5 {[%clk 0:02:35]} 12. Nxf5 {[%clk 0:02:31]}  Bxf5 {[%clk 0:02:35]} 13. g4 {[%clk 0:02:31]}  Bh7 {[%clk 0:02:24]} 14. f5 {[%clk 0:02:32]}  O-O-O {[%clk 0:02:13]} 15. Qf3 {[%clk 0:02:00]}  Bb4 {[%clk 0:02:01]} 16. a5 {[%clk 0:01:38]}  Rhf8 {[%clk 0:01:52]} 17. Na4 {[%clk 0:01:34]}  h5 {[%clk 0:01:34]} 18. c3 {[%clk 0:01:30]}  hxg4 {[%clk 0:01:28]} 19. Qxg4 {[%clk 0:01:31]}  Be7 {[%clk 0:00:57]} 20. fxe6 {[%clk 0:01:27]}  Qd3 {[%clk 0:00:35]} 21. exf7+ {[%clk 0:01:24]}  Kb8 {[%clk 0:00:35]} 22. Bf4 {[%clk 0:01:18]}  a6 {[%clk 0:00:17]} 23. Nc5 {[%clk 0:01:00]}  Bxc5 {[%clk 0:00:16]} 24. dxc5 {[%clk 0:01:01]}  Bf5 {[%clk 0:00:11]} 25. Qxg7 {[%clk 0:00:55]}  Ka7 {[%clk 0:00:11]} 26. Qf6 {[%clk 0:00:43]}  Bh3 {[%clk 0:00:09]} 27. Rf2 {[%clk 0:00:35]}  Rd7 {[%clk 0:00:04]} 28. e6 {[%clk 0:00:33]}  Bxe6 {[%clk 0:00:04]} 29. Qxe6 {[%clk 0:00:33]}  Rdxf7 {[%clk 0:00:05]} 30. Bb8+ {[%clk 0:00:17]}  Kxb8 {[%clk 0:00:02]} 31. Rxf7 {[%clk 0:00:17]}  Rxf7 {[%clk 0:00:01]} 32. Qxf7 {[%clk 0:00:18]}  Qe3+ {[%clk 0:00:01]} 33. Qf2 {[%clk 0:00:18]}  Qg5+ {[%clk 0:00:02]} 34. Qg3+ {[%clk 0:00:19]}  Qxg3+ {[%clk 0:00:01]} 35. hxg3 {[%clk 0:00:20]} 1-0


[Site "https://www.chess.com"]

[Event "Titled Tuesday Blitz May 2 Early 2023"]
[White "Cramling Bellon, Anna"]
[Black "Kopacz, Grzegorz"]
[WhiteFideId "32009232"]
[BlackFideId "1109880"]
[WhiteElo "1972"]
[BlackElo "2037"]
[Result "1-0"]
[Round "09"]
[TimeControl "180+2"]
[Date "2023.05.02"]
[WhiteClock "0:00:49"]
[BlackClock "0:01:41"]

1. d4 {[%clk 0:03:00]}  Nf6 {[%clk 0:02:59]} 2. c4 {[%clk 0:02:58]}  g6 {[%clk 0:02:57]} 3. Nc3 {[%clk 0:02:57]}  d5 {[%clk 0:02:58]} 4. cxd5 {[%clk 0:02:57]}  Nxd5 {[%clk 0:02:59]} 5. e4 {[%clk 0:02:58]}  Nxc3 {[%clk 0:02:58]} 6. bxc3 {[%clk 0:02:58]}  Bg7 {[%clk 0:02:59]} 7. Qa4+ {[%clk 0:02:58]}  Bd7 {[%clk 0:02:56]} 8. Qa3 {[%clk 0:02:57]}  O-O {[%clk 0:02:54]} 9. Bg5 {[%clk 0:02:54]}  Re8 {[%clk 0:02:51]} 10. Nf3 {[%clk 0:02:53]}  h6 {[%clk 0:02:51]} 11. Be3 {[%clk 0:02:51]}  Bg4 {[%clk 0:02:50]} 12. Be2 {[%clk 0:02:51]}  Nd7 {[%clk 0:02:50]} 13. O-O {[%clk 0:02:51]}  c5 {[%clk 0:02:48]} 14. h3 {[%clk 0:02:51]}  Bxf3 {[%clk 0:02:47]} 15. Bxf3 {[%clk 0:02:52]}  cxd4 {[%clk 0:02:48]} 16. cxd4 {[%clk 0:02:52]}  Nb6 {[%clk 0:02:46]} 17. Rac1 {[%clk 0:02:27]}  Qd6 {[%clk 0:02:40]} 18. Qxd6 {[%clk 0:02:21]}  exd6 {[%clk 0:02:40]} 19. Rc7 {[%clk 0:02:22]}  Rab8 {[%clk 0:02:27]} 20. Rfc1 {[%clk 0:02:08]}  Rec8 {[%clk 0:02:26]} 21. Bg4 {[%clk 0:02:00]}  Rxc7 {[%clk 0:02:19]} 22. Rxc7 {[%clk 0:02:01]}  d5 {[%clk 0:02:20]} 23. e5 {[%clk 0:01:53]}  Nc4 {[%clk 0:02:20]} 24. e6 {[%clk 0:01:52]}  Nxe3 {[%clk 0:02:14]} 25. exf7+ {[%clk 0:01:42]}  Kf8 {[%clk 0:02:13]} 26. fxe3 {[%clk 0:01:42]}  b5 {[%clk 0:02:08]} 27. Rxa7 {[%clk 0:01:38]}  h5 {[%clk 0:02:04]} 28. Be6 {[%clk 0:01:36]}  Bh6 {[%clk 0:01:56]} 29. Kf2 {[%clk 0:01:35]}  b4 {[%clk 0:01:52]} 30. Bxd5 {[%clk 0:01:27]}  Bg5 {[%clk 0:01:51]} 31. e4 {[%clk 0:01:03]}  Be7 {[%clk 0:01:41]} 32. e5 {[%clk 0:00:51]}  Kg7 {[%clk 0:01:41]} 33. Rxe7 {[%clk 0:00:49]} 1-0


[Site "https://www.chess.com"]

[Event "Titled Tuesday Blitz May 2 Early 2023"]
[White "Larina, Maria"]
[Black "Sadovsky, Artem"]
[WhiteFideId "24113182"]
[BlackFideId "4155840"]
[WhiteElo "1848"]
[BlackElo "2314"]
[Result "0-1"]
[Round "09"]
[TimeControl "180+2"]
[Date "2023.05.02"]
[WhiteClock "0:00:02"]
[BlackClock "0:00:03"]

1. e4 {[%clk 0:03:00]}  e5 {[%clk 0:02:43]} 2. Nf3 {[%clk 0:02:58]}  Nc6 {[%clk 0:02:43]} 3. Nc3 {[%clk 0:02:59]}  d6 {[%clk 0:02:37]} 4. d4 {[%clk 0:02:56]}  exd4 {[%clk 0:02:23]} 5. Nxd4 {[%clk 0:02:57]}  Bd7 {[%clk 0:02:22]} 6. Bc4 {[%clk 0:02:41]}  Nf6 {[%clk 0:02:21]} 7. Bg5 {[%clk 0:02:38]}  Be7 {[%clk 0:02:20]} 8. O-O {[%clk 0:02:09]}  O-O {[%clk 0:02:19]} 9. Re1 {[%clk 0:02:06]}  h6 {[%clk 0:02:00]} 10. Bh4 {[%clk 0:02:04]}  Ne5 {[%clk 0:01:35]} 11. Bf1 {[%clk 0:01:56]}  Ng6 {[%clk 0:01:22]} 12. Bg3 {[%clk 0:01:51]}  Re8 {[%clk 0:01:22]} 13. Nf5 {[%clk 0:01:14]}  Bf8 {[%clk 0:01:13]} 14. Qf3 {[%clk 0:01:10]}  Bc6 {[%clk 0:00:38]} 15. Nd5 {[%clk 0:00:59]}  Bxd5 {[%clk 0:00:31]} 16. exd5 {[%clk 0:01:00]}  Nd7 {[%clk 0:00:10]} 17. b4 {[%clk 0:00:33]}  Nde5 {[%clk 0:00:09]} 18. Qd1 {[%clk 0:00:31]}  Qf6 {[%clk 0:00:09]} 19. c4 {[%clk 0:00:27]}  a5 {[%clk 0:00:04]} 20. Ne3 {[%clk 0:00:20]}  axb4 {[%clk 0:00:03]} 21. Qd2 {[%clk 0:00:17]}  Nd7 {[%clk 0:00:01]} 22. Qxb4 {[%clk 0:00:16]}  Nc5 {[%clk 0:00:01]} 23. Qd2 {[%clk 0:00:09]}  Ne5 {[%clk 0:00:01]} 24. h3 {[%clk 0:00:06]}  Ne4 {[%clk 0:00:02]} 25. Qc2 {[%clk 0:00:03]}  Nxg3 {[%clk 0:00:02]} 26. fxg3 {[%clk 0:00:04]}  Qg6 {[%clk 0:00:02]} 27. Qxg6 {[%clk 0:00:03]}  Nxg6 {[%clk 0:00:03]} 28. Nc2 {[%clk 0:00:02]}  Be7 {[%clk 0:00:03]} 0-1


[Site "https://www.chess.com"]

[Event "Titled Tuesday Blitz May 2 Early 2023"]
[White "Kubatko, Ivan"]
[Black "Wimalasuriya, Kasun M."]
[WhiteFideId "24111473"]
[BlackFideId "9906789"]
[WhiteElo "2285"]
[BlackElo "1781"]
[Result "1/2-1/2"]
[Round "09"]
[TimeControl "180+2"]
[Date "2023.05.02"]
[WhiteClock "0:00:06"]
[BlackClock "0:01:20"]

1. e4 {[%clk 0:02:58]}  c5 {[%clk 0:02:49]} 2. c3 {[%clk 0:02:58]}  d5 {[%clk 0:02:46]} 3. exd5 {[%clk 0:02:58]}  Qxd5 {[%clk 0:02:46]} 4. d4 {[%clk 0:02:59]}  Nc6 {[%clk 0:02:44]} 5. Nf3 {[%clk 0:02:58]}  Nf6 {[%clk 0:02:43]} 6. Be2 {[%clk 0:02:43]}  Bg4 {[%clk 0:02:42]} 7. h3 {[%clk 0:02:42]}  Bh5 {[%clk 0:02:41]} 8. O-O {[%clk 0:02:42]}  e6 {[%clk 0:02:41]} 9. Na3 {[%clk 0:02:36]}  cxd4 {[%clk 0:02:40]} 10. Nb5 {[%clk 0:02:35]}  Qd7 {[%clk 0:02:16]} 11. Nfxd4 {[%clk 0:02:06]}  Bxe2 {[%clk 0:02:14]} 12. Qxe2 {[%clk 0:02:07]}  Nxd4 {[%clk 0:02:13]} 13. Nxd4 {[%clk 0:02:06]}  Be7 {[%clk 0:02:13]} 14. Rd1 {[%clk 0:02:03]}  Rd8 {[%clk 0:02:06]} 15. Bg5 {[%clk 0:01:55]}  Qc8 {[%clk 0:01:59]} 16. Nb5 {[%clk 0:01:42]}  a6 {[%clk 0:01:55]} 17. Rxd8+ {[%clk 0:01:41]}  Qxd8 {[%clk 0:01:55]} 18. Rd1 {[%clk 0:01:41]}  Qc8 {[%clk 0:01:54]} 19. Nd6+ {[%clk 0:01:15]}  Bxd6 {[%clk 0:01:53]} 20. Rxd6 {[%clk 0:01:16]}  Ke7 {[%clk 0:01:48]} 21. Qd3 {[%clk 0:01:00]}  Rd8 {[%clk 0:01:46]} 22. Bxf6+ {[%clk 0:00:56]}  gxf6 {[%clk 0:01:45]} 23. Rxd8 {[%clk 0:00:54]}  Qxd8 {[%clk 0:01:44]} 24. Qxh7 {[%clk 0:00:47]}  Qd1+ {[%clk 0:01:37]} 25. Kh2 {[%clk 0:00:47]}  Qe2 {[%clk 0:01:37]} 26. Qh4 {[%clk 0:00:43]}  Qxb2 {[%clk 0:01:35]} 27. Qb4+ {[%clk 0:00:37]}  Qxb4 {[%clk 0:01:35]} 28. cxb4 {[%clk 0:00:38]}  f5 {[%clk 0:01:35]} 29. Kg3 {[%clk 0:00:35]}  Kf6 {[%clk 0:01:35]} 30. f4 {[%clk 0:00:31]}  Kg6 {[%clk 0:01:34]} 31. Kf3 {[%clk 0:00:17]}  f6 {[%clk 0:01:33]} 32. g4 {[%clk 0:00:17]}  fxg4+ {[%clk 0:01:33]} 33. hxg4 {[%clk 0:00:17]}  b5 {[%clk 0:01:31]} 34. Ke4 {[%clk 0:00:15]}  Kh6 {[%clk 0:01:29]} 35. Kd4 {[%clk 0:00:08]}  Kg6 {[%clk 0:01:27]} 36. Ke4 {[%clk 0:00:03]}  Kh6 {[%clk 0:01:23]} 37. g5+ {[%clk 0:00:03]}  Kg6 {[%clk 0:01:21]} 38. gxf6 {[%clk 0:00:03]}  Kxf6 {[%clk 0:01:22]} 39. Kd4 {[%clk 0:00:03]}  Kf5 {[%clk 0:01:22]} 40. Ke3 {[%clk 0:00:03]}  e5 {[%clk 0:01:21]} 41. fxe5 {[%clk 0:00:03]}  Kxe5 {[%clk 0:01:21]} 42. Kd3 {[%clk 0:00:04]}  Kd5 {[%clk 0:01:21]} 43. a3 {[%clk 0:00:04]}  Ke5 {[%clk 0:01:20]} 44. Ke3 {[%clk 0:00:05]}  Kd5 {[%clk 0:01:21]} 45. Kd3 {[%clk 0:00:05]}  Ke5 {[%clk 0:01:21]} 46. Ke3 {[%clk 0:00:05]}  Kd5 {[%clk 0:01:20]} 47. Kd3 {[%clk 0:00:06]} 1/2-1/2


[Site "https://www.chess.com"]

[Event "Titled Tuesday Blitz May 2 Early 2023"]
[White "Kiseljova, Marya"]
[Black "Chirivi C, Jenny Astrid"]
[WhiteFideId "4155009"]
[BlackFideId "4403061"]
[WhiteElo "1851"]
[BlackElo "2001"]
[Result "1-0"]
[Round "09"]
[TimeControl "180+2"]
[Date "2023.05.02"]
[WhiteClock "0:00:35"]
[BlackClock "0:00:36"]

1. d4 {[%clk 0:03:00]}  Nf6 {[%clk 0:02:59]} 2. c4 {[%clk 0:03:00]}  e6 {[%clk 0:02:57]} 3. Bf4 {[%clk 0:03:00]}  c5 {[%clk 0:02:56]} 4. d5 {[%clk 0:02:52]}  d6 {[%clk 0:02:48]} 5. Nc3 {[%clk 0:02:48]}  e5 {[%clk 0:02:48]} 6. Bg5 {[%clk 0:02:48]}  Be7 {[%clk 0:02:47]} 7. e4 {[%clk 0:02:41]}  O-O {[%clk 0:02:47]} 8. Be2 {[%clk 0:02:38]}  a6 {[%clk 0:02:47]} 9. a4 {[%clk 0:02:37]}  h6 {[%clk 0:02:32]} 10. Bxf6 {[%clk 0:02:31]}  Bxf6 {[%clk 0:02:31]} 11. h3 {[%clk 0:02:31]}  Bg5 {[%clk 0:02:30]} 12. Nf3 {[%clk 0:02:28]}  f5 {[%clk 0:02:27]} 13. Nxg5 {[%clk 0:02:16]}  Qxg5 {[%clk 0:02:26]} 14. Bf3 {[%clk 0:02:16]}  Nd7 {[%clk 0:02:21]} 15. Qd2 {[%clk 0:02:11]}  Nf6 {[%clk 0:02:16]} 16. Qxg5 {[%clk 0:02:08]}  hxg5 {[%clk 0:02:16]} 17. exf5 {[%clk 0:02:09]}  Bxf5 {[%clk 0:02:14]} 18. Kd2 {[%clk 0:02:03]}  Rae8 {[%clk 0:02:12]} 19. Rae1 {[%clk 0:02:03]}  e4 {[%clk 0:02:09]} 20. Bd1 {[%clk 0:01:58]}  Re5 {[%clk 0:02:08]} 21. Bc2 {[%clk 0:01:56]}  Rfe8 {[%clk 0:02:07]} 22. Re3 {[%clk 0:01:54]}  g4 {[%clk 0:02:06]} 23. h4 {[%clk 0:01:49]}  Nh5 {[%clk 0:01:59]} 24. g3 {[%clk 0:01:48]}  Nf6 {[%clk 0:01:54]} 25. Rhe1 {[%clk 0:01:48]}  g6 {[%clk 0:01:42]} 26. Nd1 {[%clk 0:01:26]}  b5 {[%clk 0:01:38]} 27. axb5 {[%clk 0:01:20]}  axb5 {[%clk 0:01:38]} 28. b3 {[%clk 0:01:13]}  Kf7 {[%clk 0:01:35]} 29. Nc3 {[%clk 0:01:13]}  b4 {[%clk 0:01:32]} 30. Nb5 {[%clk 0:01:06]}  Ke7 {[%clk 0:01:29]} 31. Ra1 {[%clk 0:01:00]}  Rd8 {[%clk 0:01:23]} 32. Ra7+ {[%clk 0:00:55]}  Rd7 {[%clk 0:01:22]} 33. Ra8 {[%clk 0:00:55]}  Rb7 {[%clk 0:01:18]} 34. Ra6 {[%clk 0:00:50]}  Rxb5 {[%clk 0:01:11]} 35. cxb5 {[%clk 0:00:51]}  Nxd5 {[%clk 0:01:10]} 36. Re1 {[%clk 0:00:49]}  Ke6 {[%clk 0:01:02]} 37. b6 {[%clk 0:00:46]}  e3+ {[%clk 0:00:57]} 38. fxe3 {[%clk 0:00:43]}  Bxc2 {[%clk 0:00:57]} 39. Kxc2 {[%clk 0:00:42]}  Nxe3+ {[%clk 0:00:54]} 40. Kd3 {[%clk 0:00:42]}  Nd5 {[%clk 0:00:46]} 41. Rxe5+ {[%clk 0:00:42]}  dxe5 {[%clk 0:00:45]} 42. b7+ {[%clk 0:00:42]}  Kf5 {[%clk 0:00:45]} 43. b8=Q {[%clk 0:00:41]}  e4+ {[%clk 0:00:45]} 44. Ke2 {[%clk 0:00:40]}  Nc3+ {[%clk 0:00:42]} 45. Ke1 {[%clk 0:00:41]}  Nd5 {[%clk 0:00:38]} 46. Rd6 {[%clk 0:00:38]}  Ke5 {[%clk 0:00:36]} 47. Rxg6+ {[%clk 0:00:37]}  Kd4 {[%clk 0:00:36]} 48. Rd6 {[%clk 0:00:35]} 1-0


[Site "https://www.chess.com"]

[Event "Titled Tuesday Blitz May 2 Early 2023"]
[White "Kostiukov, Alexandr"]
[Black "Winkels, Marcel"]
[WhiteFideId "14108100"]
[BlackFideId "1003887"]
[WhiteElo "2202"]
[BlackElo "1900"]
[Result "1-0"]
[Round "09"]
[TimeControl "180+2"]
[Date "2023.05.02"]
[WhiteClock "0:00:24"]
[BlackClock "0:00:01"]

1. g3 {[%clk 0:02:52]}  c5 {[%clk 0:02:56]} 2. Bg2 {[%clk 0:02:52]}  Nc6 {[%clk 0:02:57]} 3. c4 {[%clk 0:02:52]}  g6 {[%clk 0:02:57]} 4. Nf3 {[%clk 0:02:53]}  Bg7 {[%clk 0:02:58]} 5. O-O {[%clk 0:02:53]}  e5 {[%clk 0:02:57]} 6. Nc3 {[%clk 0:02:51]}  Nge7 {[%clk 0:02:55]} 7. Ne1 {[%clk 0:02:46]}  d6 {[%clk 0:02:54]} 8. Nc2 {[%clk 0:02:46]}  O-O {[%clk 0:02:50]} 9. Ne3 {[%clk 0:02:46]}  Be6 {[%clk 0:02:41]} 10. Ned5 {[%clk 0:02:45]}  Qd7 {[%clk 0:02:40]} 11. d3 {[%clk 0:02:40]}  h6 {[%clk 0:02:38]} 12. e4 {[%clk 0:02:40]}  f5 {[%clk 0:02:26]} 13. f4 {[%clk 0:02:31]}  Nd4 {[%clk 0:02:01]} 14. Be3 {[%clk 0:02:26]}  Nec6 {[%clk 0:01:52]} 15. Qd2 {[%clk 0:02:24]}  fxe4 {[%clk 0:01:25]} 16. Nxe4 {[%clk 0:01:56]}  Kh7 {[%clk 0:01:13]} 17. fxe5 {[%clk 0:01:53]}  Nxe5 {[%clk 0:01:03]} 18. Nef6+ {[%clk 0:01:48]}  Bxf6 {[%clk 0:00:51]} 19. Nxf6+ {[%clk 0:01:48]}  Rxf6 {[%clk 0:00:51]} 20. Rxf6 {[%clk 0:01:49]}  Bh3 {[%clk 0:00:44]} 21. Raf1 {[%clk 0:01:40]}  Bxg2 {[%clk 0:00:33]} 22. Qxg2 {[%clk 0:01:39]}  Re8 {[%clk 0:00:15]} 23. Bxd4 {[%clk 0:01:37]}  cxd4 {[%clk 0:00:14]} 24. Qd5 {[%clk 0:01:34]}  Re7 {[%clk 0:00:13]} 25. Rxd6 {[%clk 0:01:29]}  Qg4 {[%clk 0:00:12]} 26. Qe4 {[%clk 0:00:45]}  Qxe4 {[%clk 0:00:09]} 27. dxe4 {[%clk 0:00:45]}  d3 {[%clk 0:00:10]} 28. b3 {[%clk 0:00:40]}  Kg7 {[%clk 0:00:09]} 29. Rd1 {[%clk 0:00:36]}  b6 {[%clk 0:00:08]} 30. h3 {[%clk 0:00:33]}  h5 {[%clk 0:00:03]} 31. Rd5 {[%clk 0:00:31]}  Kf6 {[%clk 0:00:02]} 32. Kf2 {[%clk 0:00:28]}  Ke6 {[%clk 0:00:02]} 33. Ke3 {[%clk 0:00:28]}  Rf7 {[%clk 0:00:02]} 34. Rxe5+ {[%clk 0:00:23]}  Kxe5 {[%clk 0:00:01]} 35. Rxd3 {[%clk 0:00:24]} 1-0


[Site "https://www.chess.com"]

[Event "Titled Tuesday Blitz May 2 Early 2023"]
[White "Thiel, Thomas"]
[Black "James, Stuart"]
[WhiteFideId "4615964"]
[BlackFideId "7400489"]
[WhiteElo "2234"]
[BlackElo "1950"]
[Result "0-1"]
[Round "09"]
[TimeControl "180+2"]
[Date "2023.05.02"]
[WhiteClock "0:00:40"]
[BlackClock "0:01:19"]

1. e4 {[%clk 0:03:00]}  c5 {[%clk 0:02:57]} 2. Nc3 {[%clk 0:02:58]}  e6 {[%clk 0:02:57]} 3. Nge2 {[%clk 0:02:54]}  Nc6 {[%clk 0:02:55]} 4. g3 {[%clk 0:02:54]}  Nf6 {[%clk 0:02:55]} 5. Bg2 {[%clk 0:02:54]}  d5 {[%clk 0:02:53]} 6. exd5 {[%clk 0:02:53]}  exd5 {[%clk 0:02:53]} 7. d4 {[%clk 0:02:52]}  cxd4 {[%clk 0:02:53]} 8. Nxd4 {[%clk 0:02:50]}  Bc5 {[%clk 0:02:52]} 9. Be3 {[%clk 0:02:45]}  Nxd4 {[%clk 0:02:44]} 10. Bxd4 {[%clk 0:02:44]}  Qe7+ {[%clk 0:02:42]} 11. Ne2 {[%clk 0:02:36]}  Bxd4 {[%clk 0:02:42]} 12. Qxd4 {[%clk 0:02:33]}  O-O {[%clk 0:02:41]} 13. Bf3 {[%clk 0:02:02]}  Bf5 {[%clk 0:02:35]} 14. c3 {[%clk 0:01:47]}  Rfc8 {[%clk 0:02:21]} 15. O-O {[%clk 0:01:43]}  Rc4 {[%clk 0:02:20]} 16. Qd2 {[%clk 0:01:42]}  Ne4 {[%clk 0:02:18]} 17. Qe3 {[%clk 0:01:39]}  Re8 {[%clk 0:02:06]} 18. Nf4 {[%clk 0:01:37]}  Ng5 {[%clk 0:02:03]} 19. Qxe7 {[%clk 0:01:28]}  Nxf3+ {[%clk 0:02:03]} 20. Kg2 {[%clk 0:01:28]}  Rxe7 {[%clk 0:01:57]} 21. Kxf3 {[%clk 0:01:27]}  Be4+ {[%clk 0:01:56]} 22. Kg4 {[%clk 0:01:26]}  f5+ {[%clk 0:01:35]} 23. Kh3 {[%clk 0:01:21]}  g5 {[%clk 0:01:34]} 24. Nh5 {[%clk 0:01:16]}  Bf3 {[%clk 0:01:26]} 25. Nf6+ {[%clk 0:00:40]}  Kg7 {[%clk 0:01:19]} 0-1


[Site "https://www.chess.com"]